{"text_format":"1","workbook":"xlsx","n_sheets":3,"sheets":["TCD","Informations","Jan."],"not_rendered":{"charts":0,"images":0,"macros":1,"external_links":0,"defined_names":6,"comments":0,"pivot_tables":5},"unopened":[],"bounds":{"document_bytes":16777216,"sheet_cells":100000,"rows_first":2000,"rows_last":500,"rows_between":2000,"halvings":0,"cell_chars":16384,"cell_head_chars":4096},"cells_cut":0,"cells_raw":0,"read":"whole","date_system":"1900"}

{"sheet":"TCD","index":0,"n_rows":46,"n_cols":14,"rows_kept":46,"cut":false,"hidden":false,"merged":[]}
["Centre","Corse",null,"Centre","Côte d'Azur",null,"Centre","Languedoc Roussillon",null,"Centre","Provence",null,"Centre","Absence"]
[]
["Corse",null,null,"Côte d'Azur (CA)",null,null,"Languedoc Roussillon (LR)",null,null,"Provence",null,null,"Absence"]
["Test1",null,null,"TestCA1",null,null,"TestLR1",null,null,"TestProvence1",null,null,"Congé Maladie"]
["Test2",null,null,"TestCA2",null,null,"TestLR2",null,null,"TestProvence2",null,null,"Congés Payés Annuels"]
["Test3",null,null,"TestCA3",null,null,"TestLR3",null,null,"TestProvence3",null,null,"Grève (Abs. Non rémun.)"]
["Test4",null,null,"TestCA4",null,null,"TestLR4",null,null,"TestProvence4",null,null,"Jours AROTTE"]
["Test5",null,null,"TestCA5",null,null,"TestLR5",null,null,"TestProvence5",null,null,"Salarié dispensant"]
[null,null,null,"TestCA6",null,null,"TestLR6",null,null,"TestProvence6",null,null,"Stage de Formation"]
[null,null,null,"TestCA7",null,null,"TestLR7",null,null,"TestProvence7"]
[null,null,null,"TestCA8",null,null,"TestLR8",null,null,"TestProvence8"]
[null,null,null,"TestCA9",null,null,"TestLR9",null,null,"TestProvence9"]
[null,null,null,"TestCA10",null,null,"TestLR10",null,null,"TestProvence10"]
[null,null,null,null,null,null,"TestLR11",null,null,"TestProvence11"]
[null,null,null,null,null,null,"TestLR12",null,null,"TestProvence12"]
[null,null,null,null,null,null,"TestLR13",null,null,"TestProvence13"]
[null,null,null,null,null,null,"TestLR14",null,null,"TestProvence14"]
[null,null,null,null,null,null,"TestLR15",null,null,"TestProvence15"]
[null,null,null,null,null,null,"TestLR16",null,null,"TestProvence16"]
[null,null,null,null,null,null,"TestLR17",null,null,"TestProvence17"]
[null,null,null,null,null,null,"TestLR18",null,null,"TestProvence18"]
[null,null,null,null,null,null,"TestLR19",null,null,"TestProvence19"]
[null,null,null,null,null,null,"TestLR20",null,null,"TestProvence20"]
[null,null,null,null,null,null,"TestLR21",null,null,"TestProvence21"]
[null,null,null,null,null,null,"TestLR22",null,null,"TestProvence22"]
[null,null,null,null,null,null,"TestLR23",null,null,"TestProvence23"]
[null,null,null,null,null,null,null,null,null,"TestProvence24"]
[null,null,null,null,null,null,null,null,null,"TestProvence25"]
[null,null,null,null,null,null,null,null,null,"TestProvence26"]
[null,null,null,null,null,null,null,null,null,"TestProvence27"]
[null,null,null,null,null,null,null,null,null,"TestProvence28"]
[null,null,null,null,null,null,null,null,null,"TestProvence29"]
[null,null,null,null,null,null,null,null,null,"TestProvence30"]
[null,null,null,null,null,null,null,null,null,"TestProvence31"]
[null,null,null,null,null,null,null,null,null,"TestProvence32"]
[null,null,null,null,null,null,null,null,null,"TestProvence33"]
[null,null,null,null,null,null,null,null,null,"TestProvence34"]
[null,null,null,null,null,null,null,null,null,"TestProvence35"]
[null,null,null,null,null,null,null,null,null,"TestProvence36"]
[null,null,null,null,null,null,null,null,null,"TestProvence37"]
[null,null,null,null,null,null,null,null,null,"TestProvence38"]
[null,null,null,null,null,null,null,null,null,"TestProvence39"]
[null,null,null,null,null,null,null,null,null,"TestProvence40"]
[null,null,null,null,null,null,null,null,null,"TestProvence41"]
[null,null,null,null,null,null,null,null,null,"TestProvence42"]
[null,null,null,null,null,null,null,null,null,"TestProvence43"]

{"sheet":"Informations","index":1,"n_rows":134,"n_cols":26,"rows_kept":134,"cut":false,"hidden":false,"merged":[[3,1,3,3],[4,1,4,3],[6,1,6,3],[0,0,1,3],[3,6,3,8],[4,6,4,8],[6,6,6,8],[9,1,9,3],[10,1,10,3],[12,1,12,3],[9,6,9,8],[10,6,10,8],[12,6,12,8],[21,1,21,3],[22,1,22,3],[24,1,24,3],[15,1,15,3],[15,6,15,8],[16,1,16,3],[16,6,16,8],[18,1,18,3],[18,6,18,8]]}
["Informations Personnelles à compléter"]
[]
[null,null,null,null,null,null,null,null,null,null,null,null,null,null,null,null,null,null,null,null,null,null,null,null,"Zone","Divers commun"]
["Nom","SALARIE1",null,null,null,"Nom","SALARIE2"]
["Prénom",null,null,null,null,"Prénom"]
["Matricule",null,null,null,null,"Matricule"]
["Société/Service",null,null,null,null,"Société/Service"]
[]
[]
["Nom","SALARIE3",null,null,null,"Nom","SALARIE4"]
["Prénom",null,null,null,null,"Prénom"]
["Matricule",null,null,null,null,"Matricule"]
["Société/Service",null,null,null,null,"Société/Service"]
[]
[]
["Nom","SALARIE5",null,null,null,"Nom","SALARIE6"]
["Prénom",null,null,null,null,"Prénom"]
["Matricule",null,null,null,null,"Matricule"]
["Société/Service",null,null,null,null,"Société/Service"]
[]
[]
["Nom","SALARIE7"]
["Prénom"]
["Matricule"]
["Société/Service"]
[]
[]
[]
[]
[]
[]
[]
[]
[]
[]
[]
[]
["Mettre à jour les listes issues des différents TCD (feuille TCD) si le tableau ci-dessous est modifié (ajout/suppression) : Onglet Formules > Gestionnaire de noms"]
[]
[]
[]
[]
[]
[]
[]
[]
["Centre","Numéro de l'offre (6 chiffres , peut être le n° CRM)","Année d'ouverture du projet","Société titulaire du projet ","Numéro de contrat  (facultatif)","Désignation","Chef du projet (matricule SAP)","Demandeur du projet  (matricule SAP) ","Type d'offre","Date prévisionnelle de début de projet","Date prévisionnelle de fin de projet"]
["Corse",123456,2016,"SAS","AABB1122","Test1","MICHEL","JEAN","Nouveau contrat","2016-01-01","2017-12-31"]
["Corse",123457,2016,"SAS","AABB1123","Test2","MICHEL","JEAN","Nouveau contrat","2016-01-01","2017-12-31"]
["Corse",123458,2016,"SAS","AABB1124","Test3","MICHEL","JEAN","Nouveau contrat","2016-01-01","2017-12-31"]
["Corse",123459,2016,"SAS","AABB1125","Test4","MICHEL","JEAN","Nouveau contrat","2016-01-01","2017-12-31"]
["Corse",123460,2016,"SAS","AABB1126","Test5","MICHEL","JEAN","Nouveau contrat","2016-01-01","2017-12-31"]
["Côte d'Azur",123461,2016,"SAS","AABB1127","TestCA1","MICHEL","JEAN","Nouveau contrat","2016-01-01","2017-12-31"]
["Côte d'Azur",123462,2016,"SAS","AABB1128","TestCA2","MICHEL","JEAN","Nouveau contrat","2016-01-01","2017-12-31"]
["Côte d'Azur",123463,2016,"SAS","AABB1129","TestCA3","MICHEL","JEAN","Nouveau contrat","2016-01-01","2017-12-31"]
["Côte d'Azur",123464,2016,"SAS","AABB1130","TestCA4","MICHEL","JEAN","Nouveau contrat","2016-01-01","2017-12-31"]
["Côte d'Azur",123465,2016,"SAS","AABB1131","TestCA5","MICHEL","JEAN","Nouveau contrat","2016-01-01","2017-12-31"]
["Côte d'Azur",123466,2016,"SAS","AABB1132","TestCA6","MICHEL","JEAN","Nouveau contrat","2016-01-01","2017-12-31"]
["Côte d'Azur",123467,2016,"SAS","AABB1133","TestCA7","MICHEL","JEAN","Nouveau contrat","2016-01-01","2017-12-31"]
["Côte d'Azur",123468,2016,"SAS","AABB1134","TestCA8","MICHEL","JEAN","Nouveau contrat","2016-01-01","2017-12-31"]
["Côte d'Azur",123469,2016,"SAS","AABB1135","TestCA9","MICHEL","JEAN","Nouveau contrat","2016-01-01","2017-12-31"]
["Côte d'Azur",123470,2016,"SAS","AABB1136","TestCA10","MICHEL","JEAN","Nouveau contrat","2016-01-01","2017-12-31"]
["Languedoc Roussillon",123471,2016,"SAS","AABB1137","TestLR1","MICHEL","JEAN","Nouveau contrat","2016-01-01","2017-12-31"]
["Languedoc Roussillon",123472,2016,"SAS","AABB1138","TestLR2","MICHEL","JEAN","Nouveau contrat","2016-01-01","2017-12-31"]
["Languedoc Roussillon",123473,2016,"SAS","AABB1139","TestLR3","MICHEL","JEAN","Nouveau contrat","2016-01-01","2017-12-31"]
["Languedoc Roussillon",123474,2016,"SAS","AABB1140","TestLR4","MICHEL","JEAN","Nouveau contrat","2016-01-01","2017-12-31"]
["Languedoc Roussillon",123475,2016,"SAS","AABB1141","TestLR5","MICHEL","JEAN","Nouveau contrat","2016-01-01","2017-12-31"]
["Languedoc Roussillon",123476,2016,"SAS","AABB1142","TestLR6","MICHEL","JEAN","Nouveau contrat","2016-01-01","2017-12-31"]
["Languedoc Roussillon",123477,2016,"SAS","AABB1143","TestLR7","MICHEL","JEAN","Nouveau contrat","2016-01-01","2017-12-31"]
["Languedoc Roussillon",123478,2016,"SAS","AABB1144","TestLR8","MICHEL","JEAN","Nouveau contrat","2016-01-01","2017-12-31"]
["Languedoc Roussillon",123479,2016,"SAS","AABB1145","TestLR9","MICHEL","JEAN","Nouveau contrat","2016-01-01","2017-12-31"]
["Languedoc Roussillon",123480,2016,"SAS","AABB1146","TestLR10","MICHEL","JEAN","Nouveau contrat","2016-01-01","2017-12-31"]
["Languedoc Roussillon",123481,2016,"SAS","AABB1147","TestLR11","MICHEL","JEAN","Nouveau contrat","2016-01-01","2017-12-31"]
["Languedoc Roussillon",123482,2016,"SAS","AABB1148","TestLR12","MICHEL","JEAN","Nouveau contrat","2016-01-01","2017-12-31"]
["Languedoc Roussillon",123483,2016,"SAS","AABB1149","TestLR13","MICHEL","JEAN","Nouveau contrat","2016-01-01","2017-12-31"]
["Languedoc Roussillon",123484,2016,"SAS","AABB1150","TestLR14","MICHEL","JEAN","Nouveau contrat","2016-01-01","2017-12-31"]
["Languedoc Roussillon",123485,2016,"SAS","AABB1151","TestLR15","MICHEL","JEAN","Nouveau contrat","2016-01-01","2017-12-31"]
["Languedoc Roussillon",123486,2016,"SAS","AABB1152","TestLR16","MICHEL","JEAN","Nouveau contrat","2016-01-01","2017-12-31"]
["Languedoc Roussillon",123487,2016,"SAS","AABB1153","TestLR17","MICHEL","JEAN","Nouveau contrat","2016-01-01","2017-12-31"]
["Languedoc Roussillon",123488,2016,"SAS","AABB1154","TestLR18","MICHEL","JEAN","Nouveau contrat","2016-01-01","2017-12-31"]
["Languedoc Roussillon",123489,2016,"SAS","AABB1155","TestLR19","MICHEL","JEAN","Nouveau contrat","2016-01-01","2017-12-31"]
["Languedoc Roussillon",123490,2016,"SAS","AABB1156","TestLR20","MICHEL","JEAN","Nouveau contrat","2016-01-01","2017-12-31"]
["Languedoc Roussillon",123491,2016,"SAS","AABB1157","TestLR21","MICHEL","JEAN","Nouveau contrat","2016-01-01","2017-12-31"]
["Languedoc Roussillon",123492,2016,"SAS","AABB1158","TestLR22","MICHEL","JEAN","Nouveau contrat","2016-01-01","2017-12-31"]
["Languedoc Roussillon",123493,2016,"SAS","AABB1159","TestLR23","MICHEL","JEAN","Nouveau contrat","2016-01-01","2017-12-31"]
["Provence",123494,2016,"SAS","AABB1160","TestProvence1","MICHEL","JEAN","Nouveau contrat","2016-01-01","2017-12-31"]
["Provence",123495,2016,"SAS","AABB1161","TestProvence2","MICHEL","JEAN","Nouveau contrat","2016-01-01","2017-12-31"]
["Provence",123496,2016,"SAS","AABB1162","TestProvence3","MICHEL","JEAN","Nouveau contrat","2016-01-01","2017-12-31"]
["Provence",123497,2016,"SAS","AABB1163","TestProvence4","MICHEL","JEAN","Nouveau contrat","2016-01-01","2017-12-31"]
["Provence",123498,2016,"SAS","AABB1164","TestProvence5","MICHEL","JEAN","Nouveau contrat","2016-01-01","2017-12-31"]
["Provence",123499,2016,"SAS","AABB1165","TestProvence6","MICHEL","JEAN","Nouveau contrat","2016-01-01","2017-12-31"]
["Provence",123500,2016,"SAS","AABB1166","TestProvence7","MICHEL","JEAN","Nouveau contrat","2016-01-01","2017-12-31"]
["Provence",123501,2016,"SAS","AABB1167","TestProvence8","MICHEL","JEAN","Nouveau contrat","2016-01-01","2017-12-31"]
["Provence",123502,2016,"SAS","AABB1168","TestProvence9","MICHEL","JEAN","Nouveau contrat","2016-01-01","2017-12-31"]
["Provence",123503,2016,"SAS","AABB1169","TestProvence10","MICHEL","JEAN","Nouveau contrat","2016-01-01","2017-12-31"]
["Provence",123504,2016,"SAS","AABB1170","TestProvence11","MICHEL","JEAN","Nouveau contrat","2016-01-01","2017-12-31"]
["Provence",123505,2016,"SAS","AABB1171","TestProvence12","MICHEL","JEAN","Nouveau contrat","2016-01-01","2017-12-31"]
["Provence",123506,2016,"SAS","AABB1172","TestProvence13","MICHEL","JEAN","Nouveau contrat","2016-01-01","2017-12-31"]
["Provence",123507,2016,"SAS","AABB1173","TestProvence14","MICHEL","JEAN","Nouveau contrat","2016-01-01","2017-12-31"]
["Provence",123508,2016,"SAS","AABB1174","TestProvence15","MICHEL","JEAN","Nouveau contrat","2016-01-01","2017-12-31"]
["Provence",123509,2016,"SAS","AABB1175","TestProvence16","MICHEL","JEAN","Nouveau contrat","2016-01-01","2017-12-31"]
["Provence",123510,2016,"SAS","AABB1176","TestProvence17","MICHEL","JEAN","Nouveau contrat","2016-01-01","2017-12-31"]
["Provence",123511,2016,"SAS","AABB1177","TestProvence18","MICHEL","JEAN","Nouveau contrat","2016-01-01","2017-12-31"]
["Provence",123512,2016,"SAS","AABB1178","TestProvence19","MICHEL","JEAN","Nouveau contrat","2016-01-01","2017-12-31"]
["Provence",123513,2016,"SAS","AABB1179","TestProvence20","MICHEL","JEAN","Nouveau contrat","2016-01-01","2017-12-31"]
["Provence",123514,2016,"SAS","AABB1180","TestProvence21","MICHEL","JEAN","Nouveau contrat","2016-01-01","2017-12-31"]
["Provence",123515,2016,"SAS","AABB1181","TestProvence22","MICHEL","JEAN","Nouveau contrat","2016-01-01","2017-12-31"]
["Provence",123516,2016,"SAS","AABB1182","TestProvence23","MICHEL","JEAN","Nouveau contrat","2016-01-01","2017-12-31"]
["Provence",123517,2016,"SAS","AABB1183","TestProvence24","MICHEL","JEAN","Nouveau contrat","2016-01-01","2017-12-31"]
["Provence",123518,2016,"SAS","AABB1184","TestProvence25","MICHEL","JEAN","Nouveau contrat","2016-01-01","2017-12-31"]
["Provence",123519,2016,"SAS","AABB1185","TestProvence26","MICHEL","JEAN","Nouveau contrat","2016-01-01","2017-12-31"]
["Provence",123520,2016,"SAS","AABB1186","TestProvence27","MICHEL","JEAN","Nouveau contrat","2016-01-01","2017-12-31"]
["Provence",123521,2016,"SAS","AABB1187","TestProvence28","MICHEL","JEAN","Nouveau contrat","2016-01-01","2017-12-31"]
["Provence",123522,2016,"SAS","AABB1188","TestProvence29","MICHEL","JEAN","Nouveau contrat","2016-01-01","2017-12-31"]
["Provence",123523,2016,"SAS","AABB1189","TestProvence30","MICHEL","JEAN","Nouveau contrat","2016-01-01","2017-12-31"]
["Provence",123524,2016,"SAS","AABB1190","TestProvence31","MICHEL","JEAN","Nouveau contrat","2016-01-01","2017-12-31"]
["Provence",123525,2016,"SAS","AABB1191","TestProvence32","MICHEL","JEAN","Nouveau contrat","2016-01-01","2017-12-31"]
["Provence",123526,2016,"SAS","AABB1192","TestProvence33","MICHEL","JEAN","Nouveau contrat","2016-01-01","2017-12-31"]
["Provence",123527,2016,"SAS","AABB1193","TestProvence34","MICHEL","JEAN","Nouveau contrat","2016-01-01","2017-12-31"]
["Provence",123528,2016,"SAS","AABB1194","TestProvence35","MICHEL","JEAN","Nouveau contrat","2016-01-01","2017-12-31"]
["Provence",123529,2016,"SAS","AABB1195","TestProvence36","MICHEL","JEAN","Nouveau contrat","2016-01-01","2017-12-31"]
["Provence",123530,2016,"SAS","AABB1196","TestProvence37","MICHEL","JEAN","Nouveau contrat","2016-01-01","2017-12-31"]
["Provence",123531,2016,"SAS","AABB1197","TestProvence38","MICHEL","JEAN","Nouveau contrat","2016-01-01","2017-12-31"]
["Provence",123532,2016,"SAS","AABB1198","TestProvence39","MICHEL","JEAN","Nouveau contrat","2016-01-01","2017-12-31"]
["Provence",123533,2016,"SAS","AABB1199","TestProvence40","MICHEL","JEAN","Nouveau contrat","2016-01-01","2017-12-31"]
["Provence",123534,2016,"SAS","AABB1200","TestProvence41","MICHEL","JEAN","Nouveau contrat","2016-01-01","2017-12-31"]
["Provence",123535,2016,"SAS","AABB1201","TestProvence42","MICHEL","JEAN","Nouveau contrat","2016-01-01","2017-12-31"]
["Provence",123536,2016,"SAS","AABB1202","TestProvence43","MICHEL","JEAN","Nouveau contrat","2016-01-01","2017-12-31"]
["Absence",null,null,null,null,"Congés Payés Annuels"]
["Absence",null,null,null,null,"Grève (Abs. Non rémun.)"]
["Absence",null,null,null,null,"Jours AROTTE"]
["Absence",null,null,null,null,"Congé Maladie"]
["Absence",null,null,null,null,"Stage de Formation"]
["Absence",null,null,null,null,"Salarié dispensant"]

{"sheet":"Jan.","index":2,"n_rows":85,"n_cols":14,"rows_kept":85,"cut":false,"hidden":false,"merged":[[42,0,42,13],[85,0,87,13]]}
["Semaine 1 SALARIE1","Centre 1","Dossier 1","Nb heures 1","Centre 2","Dossier 2","Nb heures 2","Centre 3","Dossier 3","Nb heures 3","Centre 4","Dossier 4","Nb heures 4","Total"]
["Lundi 4","Provence","Test1",null,null,null,null,null,null,null,null,null,null,{"$f":"D2+G2+J2+M2","v":0}]
["Mardi 5",null,null,null,null,null,null,null,null,null,null,null,null,{"$f":"D3+G3+J3+M3","v":0}]
["Mercredi 6",null,null,null,null,null,null,null,null,null,null,null,null,0]
["Jeudi 7",null,null,null,null,null,null,null,null,null,null,null,null,0]
["Vendredi 8",null,null,null,null,null,null,null,null,null,null,null,null,0]
["Semaine 1 SALARIE2","Centre 1","Dossier 1","Nb heures 1","Centre 2","Dossier 2","Nb heures 2","Centre 3","Dossier 3","Nb heures 3","Centre 4","Dossier 4","Nb heures 4","Total"]
["Lundi 4",null,null,null,null,null,null,null,null,null,null,null,null,{"$f":"D8+G8+J8+M8","v":0}]
["Mardi 5",null,null,null,null,null,null,null,null,null,null,null,null,{"$f":"D9+G9+J9+M9","v":0}]
["Mercredi 6",null,null,null,null,null,null,null,null,null,null,null,null,0]
["Jeudi 7",null,null,null,null,null,null,null,null,null,null,null,null,0]
["Vendredi 8",null,null,null,null,null,null,null,null,null,null,null,null,0]
["Semaine 1 SALARIE3","Centre 1","Dossier 1","Nb heures 1","Centre 2","Dossier 2","Nb heures 2","Centre 3","Dossier 3","Nb heures 3","Centre 4","Dossier 4","Nb heures 4","Total"]
["Lundi 4",null,null,null,null,null,null,null,null,null,null,null,null,{"$f":"D14+G14+J14+M14","v":0}]
["Mardi 5",null,null,null,null,null,null,null,null,null,null,null,null,{"$f":"D15+G15+J15+M15","v":0}]
["Mercredi 6",null,null,null,null,null,null,null,null,null,null,null,null,0]
["Jeudi 7",null,null,null,null,null,null,null,null,null,null,null,null,0]
["Vendredi 8",null,null,null,null,null,null,null,null,null,null,null,null,0]
["Semaine 1 SALARIE4","Centre 1","Dossier 1","Nb heures 1","Centre 2","Dossier 2","Nb heures 2","Centre 3","Dossier 3","Nb heures 3","Centre 4","Dossier 4","Nb heures 4","Total"]
["Lundi 4",null,null,null,null,null,null,null,null,null,null,null,null,{"$f":"D20+G20+J20+M20","v":0}]
["Mardi 5",null,null,null,null,null,null,null,null,null,null,null,null,{"$f":"D21+G21+J21+M21","v":0}]
["Mercredi 6",null,null,null,null,null,null,null,null,null,null,null,null,0]
["Jeudi 7",null,null,null,null,null,null,null,null,null,null,null,null,0]
["Vendredi 8",null,null,null,null,null,null,null,null,null,null,null,null,0]
["Semaine 1 SALARIE5","Centre 1","Dossier 1","Nb heures 1","Centre 2","Dossier 2","Nb heures 2","Centre 3","Dossier 3","Nb heures 3","Centre 4","Dossier 4","Nb heures 4","Total"]
["Lundi 4",null,null,null,null,null,null,null,null,null,null,null,null,{"$f":"D26+G26+J26+M26","v":0}]
["Mardi 5",null,null,null,null,null,null,null,null,null,null,null,null,{"$f":"D27+G27+J27+M27","v":0}]
["Mercredi 6",null,null,null,null,null,null,null,null,null,null,null,null,0]
["Jeudi 7",null,null,null,null,null,null,null,null,null,null,null,null,0]
["Vendredi 8",null,null,null,null,null,null,null,null,null,null,null,null,0]
["Semaine 1 SALARIE6","Centre 1","Dossier 1","Nb heures 1","Centre 2","Dossier 2","Nb heures 2","Centre 3","Dossier 3","Nb heures 3","Centre 4","Dossier 4","Nb heures 4","Total"]
["Lundi 4",null,null,null,null,null,null,null,null,null,null,null,null,{"$f":"D32+G32+J32+M32","v":0}]
["Mardi 5",null,null,null,null,null,null,null,null,null,null,null,null,{"$f":"D33+G33+J33+M33","v":0}]
["Mercredi 6",null,null,null,null,null,null,null,null,null,null,null,null,0]
["Jeudi 7",null,null,null,null,null,null,null,null,null,null,null,null,0]
["Vendredi 8",null,null,null,null,null,null,null,null,null,null,null,null,0]
["Semaine 1 SALARIE7","Centre 1","Dossier 1","Nb heures 1","Centre 2","Dossier 2","Nb heures 2","Centre 3","Dossier 3","Nb heures 3","Centre 4","Dossier 4","Nb heures 4","Total"]
["Lundi 4",null,null,null,null,null,null,null,null,null,null,null,null,{"$f":"D38+G38+J38+M38","v":0}]
["Mardi 5",null,null,null,null,null,null,null,null,null,null,null,null,{"$f":"D39+G39+J39+M39","v":0}]
["Mercredi 6",null,null,null,null,null,null,null,null,null,null,null,null,0]
["Jeudi 7",null,null,null,null,null,null,null,null,null,null,null,null,0]
["Vendredi 8",null,null,null,null,null,null,null,null,null,null,null,null,0]
[]
["Semaine 2 SALARIE1","Centre 1","Dossier 1","Nb heures 1","Centre 2","Dossier 2","Nb heures 2","Centre 3","Dossier 3","Nb heures 3","Centre 4","Dossier 4","Nb heures 4","Total"]
["Lundi 11",null,null,null,null,null,null,null,null,null,null,null,null,{"$f":"D45+G45+J45+M45","v":0}]
["Mardi 12",null,null,null,null,null,null,null,null,null,null,null,null,{"$f":"D46+G46+J46+M46","v":0}]
["Mercredi 13",null,null,null,null,null,null,null,null,null,null,null,null,0]
["Jeudi 14",null,null,null,null,null,null,null,null,null,null,null,null,0]
["Vendredi 15",null,null,null,null,null,null,null,null,null,null,null,null,0]
["Semaine 2 SALARIE2","Centre 1","Dossier 1","Nb heures 1","Centre 2","Dossier 2","Nb heures 2","Centre 3","Dossier 3","Nb heures 3","Centre 4","Dossier 4","Nb heures 4","Total"]
["Lundi 11",null,null,null,null,null,null,null,null,null,null,null,null,{"$f":"D51+G51+J51+M51","v":0}]
["Mardi 12",null,null,null,null,null,null,null,null,null,null,null,null,{"$f":"D52+G52+J52+M52","v":0}]
["Mercredi 13",null,null,null,null,null,null,null,null,null,null,null,null,0]
["Jeudi 14",null,null,null,null,null,null,null,null,null,null,null,null,0]
["Vendredi 15",null,null,null,null,null,null,null,null,null,null,null,null,0]
["Semaine 2 SALARIE3","Centre 1","Dossier 1","Nb heures 1","Centre 2","Dossier 2","Nb heures 2","Centre 3","Dossier 3","Nb heures 3","Centre 4","Dossier 4","Nb heures 4","Total"]
["Lundi 11",null,null,null,null,null,null,null,null,null,null,null,null,{"$f":"D57+G57+J57+M57","v":0}]
["Mardi 12",null,null,null,null,null,null,null,null,null,null,null,null,{"$f":"D58+G58+J58+M58","v":0}]
["Mercredi 13",null,null,null,null,null,null,null,null,null,null,null,null,0]
["Jeudi 14",null,null,null,null,null,null,null,null,null,null,null,null,0]
["Vendredi 15",null,null,null,null,null,null,null,null,null,null,null,null,0]
["Semaine 2 SALARIE4","Centre 1","Dossier 1","Nb heures 1","Centre 2","Dossier 2","Nb heures 2","Centre 3","Dossier 3","Nb heures 3","Centre 4","Dossier 4","Nb heures 4","Total"]
["Lundi 11",null,null,null,null,null,null,null,null,null,null,null,null,{"$f":"D63+G63+J63+M63","v":0}]
["Mardi 12",null,null,null,null,null,null,null,null,null,null,null,null,{"$f":"D64+G64+J64+M64","v":0}]
["Mercredi 13",null,null,null,null,null,null,null,null,null,null,null,null,0]
["Jeudi 14",null,null,null,null,null,null,null,null,null,null,null,null,0]
["Vendredi 15",null,null,null,null,null,null,null,null,null,null,null,null,0]
["Semaine 2 SALARIE5","Centre 1","Dossier 1","Nb heures 1","Centre 2","Dossier 2","Nb heures 2","Centre 3","Dossier 3","Nb heures 3","Centre 4","Dossier 4","Nb heures 4","Total"]
["Lundi 11",null,null,null,null,null,null,null,null,null,null,null,null,{"$f":"D69+G69+J69+M69","v":0}]
["Mardi 12",null,null,null,null,null,null,null,null,null,null,null,null,{"$f":"D70+G70+J70+M70","v":0}]
["Mercredi 13",null,null,null,null,null,null,null,null,null,null,null,null,0]
["Jeudi 14",null,null,null,null,null,null,null,null,null,null,null,null,0]
["Vendredi 15",null,null,null,null,null,null,null,null,null,null,null,null,0]
["Semaine 2 SALARIE6","Centre 1","Dossier 1","Nb heures 1","Centre 2","Dossier 2","Nb heures 2","Centre 3","Dossier 3","Nb heures 3","Centre 4","Dossier 4","Nb heures 4","Total"]
["Lundi 11",null,null,null,null,null,null,null,null,null,null,null,null,{"$f":"D75+G75+J75+M75","v":0}]
["Mardi 12",null,null,null,null,null,null,null,null,null,null,null,null,{"$f":"D76+G76+J76+M76","v":0}]
["Mercredi 13",null,null,null,null,null,null,null,null,null,null,null,null,0]
["Jeudi 14",null,null,null,null,null,null,null,null,null,null,null,null,0]
["Vendredi 15",null,null,null,null,null,null,null,null,null,null,null,null,0]
["Semaine 2 SALARIE7","Centre 1","Dossier 1","Nb heures 1","Centre 2","Dossier 2","Nb heures 2","Centre 3","Dossier 3","Nb heures 3","Centre 4","Dossier 4","Nb heures 4","Total"]
["Lundi 11",null,null,null,null,null,null,null,null,null,null,null,null,{"$f":"D81+G81+J81+M81","v":0}]
["Mardi 12",null,null,null,null,null,null,null,null,null,null,null,null,{"$f":"D82+G82+J82+M82","v":0}]
["Mercredi 13",null,null,null,null,null,null,null,null,null,null,null,null,0]
["Jeudi 14",null,null,null,null,null,null,null,null,null,null,null,null,0]
["Vendredi 15",null,null,null,null,null,null,null,null,null,null,null,null,0]